Cogmind - Beta 15 @@@ ROGUE MODE // 2025.08.07 @ 23:37:45 // Halloween2019/Abominations Player: H3-RMN Result: Destroyed by Lesser Abomination with Etherial Claws Performance ------------- Evolutions (1) 500 Regions Visited (2) 400 Robots Destroyed (8) 40 Value Destroyed (236) 236 Prototype IDs (1) 20 Alien Tech Used (0) 0 Bonus (0) 0 TOTAL SCORE: 1196 Bonus ------- None Cogmind --------- Core Integrity 0/400 Matter 281/300 Energy 100/100 System Corruption 5% Temperature Cool (0) Movement Core (200) Ox3 Location -9/Materials Parts ------- > --- POWER (1) -------- (None) > --- PROPULSION (2) --- (None) > --- UTILITY (3) ------ Small Storage Unit Visual Processing Unit Improved Targeting Computer > --- WEAPON (3) ------- Maul Maul > --- INVENTORY (8) ---- Ion Engine Backup Power I Medium Laser Assault Rifle Heavy Assault Rifle Grenade Launcher Peak State ------------ > --- POWER ------------ Light Ion Engine > --- PROPULSION ------- Wheel Wheel > --- UTILITY ---------- Small Storage Unit Seismic Detector Improved Targeting Computer > --- WEAPON ----------- Improved EM Shotgun Assault Rifle Maul > --- INVENTORY -------- Ion Engine Light Ion Engine Light Ion Engine Backup Power I Wheel Assault Rifle Heavy Assault Rifle Grenade Launcher [Rating: 13] Favorites ----------- Power Light Ion Engine Engine Light Ion Engine Propulsion Wheel Wheel Wheel Utility Small Storage Unit Device Seismic Detector Storage Small Storage Unit Processor Improved Targeting Computer Weapon Maul Energy Gun Improved EM Shotgun Ballistic Gun Assault Rifle Impact Weapon Maul Build | -11 -10 -9 ------- Run | Yrd Mat Mat Slots Evolved 2 | . . 2 Power . | . . . Propulsion . | . . . Utility 1 | . . 1 Weapon 1 | . . 1 Parts Attached 18 | 7 1 10 Power 3 | 1 . 2 Engine 3 | 1 . 2 Core . | . . . Reactor . | . . . Propulsion 4 | 2 1 1 Treads . | . . . Leg . | . . . Wheel 4 | 2 1 1 Hover . | . . . Flight . | . . . Utility 4 | 2 . 2 Device 1 | 1 . . Storage 1 | 1 . . Processor 2 | . . 2 Hackware . | . . . Protection . | . . . Artifact . | . . . Weapon 7 | 2 . 5 Energy Gun 1 | . . 1 Energy Cannon . | . . . Ballistic Gun 3 | 2 . 1 Ballistic Cannon . | . . . Launcher . | . . . Special Weapon . | . . . Impact Weapon 3 | . . 3 Slashing Weapon . | . . . Piercing Weapon . | . . . Special Melee Weapon . | . . . Unidentified Prototypes 1 | . . 1 Parts Lost 8 | . . 8 Power 2 | . . 2 Propulsion 3 | . . 3 Utility 1 | . . 1 Weapon 2 | . . 2 Highest Loss Streak 7 | . . 7 To Critical Strikes . | . . . Average Backups 6 | 4 8 6 Power 2 | 1 3 2 Propulsion 1 | 2 2 . Utility . | . . . Weapon 2 | . 2 3 Tool/Special . | . . . Unused Backups 7 | . 2 5 Power 1 | . . 1 Propulsion 2 | . 2 . Utility . | . . . Weapon 4 | . . 4 Tool/Special . | . . . Average Slot Usage (%) 88 | . 100 82 Engine 10 | . 14 9 Wheel 15 | . 28 9 Device 8 | . 14 4 Storage 12 | . 14 11 Processor 10 | . . 15 Ballistic Gun 15 | . 28 8 Impact Weapon 14 | . . 23 Peak Build Rating 13 | 7 7 13 Average Rating 8 | 5 7 11 On Entrance 4 | . 7 7 Naked Turns . | . . . Heaviest Build 18 | 12 12 18 Greatest Support 20 | 20 20 20 Greatest Overweight (x) 5 | . . 5 Average Overweight (x) . | . . 1 Largest Inventory Capacity 8 | 8 8 8 Average Capacity 7 | 7 8 8 Most Carried 8 | 8 8 8 Average Carried 6 | 4 7 6 Final Capacity 8 | 8 8 8 Final Carried 8 | 8 8 6 Class Distribution -------------------- 88% | Mutant 11% | Gunner Dominant Class ---------------- Mutant | -10/Materials Mutant | -9/Materials Resources | -11 -10 -9 ----------- Run | Yrd Mat Mat Matter Collected 484 | 314 21 149 Remotely . | . . . Salvage Created 351 | 144 111 96 Parts 24 | 9 14 1 Haulers Intercepted 1 | . . 1 Recyclers Shooed . | . . . Parts Field Recycled . | . . . Retrieved Matter . | . . . Parts Self-Destructed . | . . . Prevented . | . . . Kills | -11 -10 -9 ------- Run | Yrd Mat Mat Combat Hostiles Destroyed 4 | . 3 1 Melee 1 | . . 1 Guns 3 | . 3 . Classes Destroyed 5 | 2 2 1 Tunneler 2 | 2 . . Hauler 1 | . . 1 Recycler 1 | 1 . . Grunt 1 | . 1 . Abomination 3 | . 2 1 Best Kill Streak 2 | 2 2 1 Combat Bots Only 2 | . 2 1 Max Kills in Single Turn 1 | 1 1 1 Gunslinging . | . . . Exploded . | . . . Melee 1 | . . 1 Uniques/NPCs Destroyed . | . . . Combat | -11 -10 -9 -------- Run | Yrd Mat Mat Hostile Shots Fired 114 | . 21 93 Missed 42 | . 8 34 Hits 72 | . 13 59 Melee 11 | . 2 9 Projectile 61 | . 11 50 Critical Strikes 4 | . 1 3 Damage Taken 1289 | . 231 1058 Core 462 | . 45 417 Absorbed by Shields . | . . . Core Remaining (%) 91 | 100 82 . Volleys Fired 32 | 14 12 6 Largest 3 | 2 2 3 Hottest 60 | 40 40 60 Shots Fired 70 | 28 24 18 Gun 70 | 28 24 18 Cannon . | . . . Launcher . | . . . Special . | . . . Kinetic 70 | 28 24 18 Thermal . | . . . Explosive . | . . . Electromagnetic . | . . . Robot Hit Streak 16 | 6 16 6 Robot Miss Streak 2 | 2 1 2 Penetration Max . | . . . Secondary Targets . | . . . Shots Hit Robots 63 | 21 22 20 Core Hits 23 | 7 13 3 Critical Kills . | . . . Critical Parts Destroyed 3 | . 1 2 Critical Strikes 3 | . 1 2 Destroy 1 | . 1 . Smash 2 | . . 2 Melee Attacks 13 | . . 13 Impact 13 | . . 13 Slashing . | . . . Piercing . | . . . Sneak Attacks . | . . . Combat Hostiles . | . . . Follow-up Attacks 3 | . . 3 Damage Inflicted 867 | 233 220 414 Guns 600 | 233 220 147 Cannons . | . . . Explosions . | . . . Melee 267 | . . 267 Ramming . | . . . Kinetic 600 | 233 220 147 Thermal . | . . . Explosive . | . . . Electromagnetic . | . . . Impact 267 | . . 267 Slashing . | . . . Piercing . | . . . Highest Corruption 5 | . . 5 Average Corruption 4 | . . 4 Corruption Purged . | . . . Corruption Blocked . | . . . Effects 7 | . . 7 Message Errors 2 | . . 2 Matter Fused 1 | . . 1 Heat Flow Errors 1 | . . 1 Parts Rejected 1 | . . 1 Data Loss (minor) 2 | . . 2 Overload Shots . | . . . Overflow Damage 109 | . . 109 Projectiles . | . . . Explosions . | . . . Melee 109 | . . 109 Knockbacks 3 | . . 3 Impact 3 | . . 3 Kinetic . | . . . Secondary . | . . . Self-Inflicted Damage . | . . . Shots . | . . . Rammed . | . . . Targets Rammed . | . . . Kicked . | . . . Crushed . | . . . Highest Temperature 93 | . 16 93 Average Temperature 19 | . 9 44 Received Heat Transfer 303 | . 75 228 Siege Activations . | . . . Martial Activations . | . . . Shielding Activations . | . . . Robots Disrupted . | . . . Combat Hostiles . | . . . Robots Corrupted . | . . . Combat Hostiles . | . . . Parts Fried 3 | . . 3 Impact Corruptions 5 | . . 5 Robots Melted . | . . . Combat Hostiles . | . . . Parts Melted . | . . . Heat Transferred . | . . . Parts Sabotaged . | . . . Parts Stolen . | . . . Parts Stripped . | . . . Power Chain Reactions . | . . . Alert | -11 -10 -9 ------- Run | Yrd Mat Mat Maximum Alert Level . | . . . Low Security (%) 100 | 100 100 100 Level 1 . | . . . Level 2 . | . . . Level 3 . | . . . Level 4 . | . . . Level 5 . | . . . High Security . | . . . Max Security . | . . . Peak Influence 55 | 5 30 55 Initial 12 | . . 12 Average 10 | 1 1 19 Influence Increases 164 | 15 36 113 Destroy 0b10 Robot/C 20 | . 20 . Destroy 0b10 Robot/NC 20 | 15 . 5 Destroy Leader 12 | . 10 2 Successful Hack 6 | . 6 . Destroy Structure 1 | . . 1 Lose Combat Pursuer 105 | . . 105 Influence Decreases 164 | 15 6 143 Entered New Map 18 | . . 18 Time Decay 113 | 15 6 92 Lost Part 33 | . . 33 Squads Dispatched 4 | . 2 2 Investigation 2 | . 1 1 Extermination . | . . . Reinforcement 2 | . 1 1 Assault . | . . . Garrison . | . . . Intercept . | . . . Searches Triggered . | . . . Construction Impeded . | . . . Haulers Reinforced . | . . . Active Scanning Responses . | . . . Cargo Convoy Interrupts . | . . . Stealth | -11 -10 -9 --------- Run | Yrd Mat Mat Distress Signals 6 | . 1 5 Communications Jammed . | . . . Distress Signals . | . . . Times Spotted 22 | . 5 17 Peak Tracking Total 11 | . 2 11 Tactical Retreats 3 | . . 3 Traps | -11 -10 -9 ------- Run | Yrd Mat Mat Traps Triggered . | . . . Indirectly . | . . . Trap Hack Attempts . | . . . Triggered . | . . . Disarmed . | . . . Reprogrammed . | . . . Reused . | . . . Traps Extracted . | . . . Installed . | . . . Triggered . | . . . Machines | -11 -10 -9 ---------- Run | Yrd Mat Mat Machines Disabled . | . . . Max in Single Turn . | . . . Machines Repaired . | . . . Machines Dismantled . | . . . Machines Sabotaged . | . . . Overloaded Fab Kills . | . . . Hacking | -11 -10 -9 --------- Run | Yrd Mat Mat Machines Accessed 2 | . 2 . Terminals 1 | . 1 . Fabricators . | . . . Repair Stations 1 | . 1 . Recycling Units . | . . . Scanalyzers . | . . . Garrison Access . | . . . Total Hacks 5 | . 5 . Successful 3 | . 3 . Failed 2 | . 2 . Catastrophic . | . . . Database Lockouts . | . . . Manual 3 | . 3 . Terminals 4 | . 4 . Fabricators . | . . . Repair Stations 1 | . 1 . Recycling Units . | . . . Scanalyzers . | . . . Garrison Access . | . . . Terminal Hacks 1 | . 1 . Registered Components 1 | . 1 . Fabricator Hacks . | . . . Repair Station Hacks 1 | . 1 . Refit 1 | . 1 . Recycling Unit Hacks . | . . . Scanalyzer . | . . . Garrison Access Hacks . | . . . Unauthorized Hacks 1 | . 1 . Terminals 1 | . 1 . Track 1 | . 1 . Fabricators . | . . . Repair Stations . | . . . Recycling Units . | . . . Scanalyzers . | . . . Garrison Access . | . . . Data Cores Recovered . | . . . Used . | . . . Hacking Detections 1 | . 1 . Full Trace Events . | . . . Feedback Events . | . . . Feedback Blocked . | . . . Robot Schematics Acquired . | . . . Robots Built . | . . . Authchips . | . . . Time . | . . . Total Robot Build Rating . | . . . Part Schematics Acquired . | . . . Parts Built . | . . . Authchips . | . . . Time . | . . . Total Part Build Rating . | . . . Parts Repaired . | . . . Time . | . . . Parts Recycled . | . . . Recycled Matter . | . . . Retrieved Matter . | . . . Retrieved Components . | . . . Parts Scanalyzed . | . . . Part Schematics Acquired . | . . . Parts Damaged . | . . . Bothacking | -11 -10 -9 ------------ Run | Yrd Mat Mat Used RIF Installer . | . . . Robots Hacked . | . . . Non-combat . | . . . Combat . | . . . Robot Hacks Applied . | . . . Relay Couplers Released . | . . . Fabnet Peak Effective % . | . . . Robots Rewired . | . . . Allies Hacked . | . . . Hacks Repelled . | . . . Allies | -11 -10 -9 -------- Run | Yrd Mat Mat Total Allies . | . . . Largest Group . | . . . Highest-Rated Group . | . . . Highest-Rated Ally . | . . . Total Orders . | . . . Ally Attacks . | . . . Total Damage . | . . . Kills . | . . . Allies Corrupted . | . . . Allies Melted . | . . . Intel | -11 -10 -9 ------- Run | Yrd Mat Mat Active Infowar (turns) 408 | 15 149 244 Optics 130 | . . 130 Seismic 278 | 15 149 114 Robot Analysis Total . | . . . Derelict Logs Recovered . | . . . Drone Launches . | . . . Drone Recoveries . | . . . Exploration | -11 -10 -9 ------------- Run | Yrd Mat Mat Turns Passed 539 | 122 149 268 Spaces Moved 316 | 77 120 119 Core 27 | 2 . 25 Treads . | . . . Legs . | . . . Wheels 289 | 75 120 94 Hover . | . . . Flight . | . . . Fastest Speed 50 | 50 80 80 Average Speed 95 | 79 80 122 Slowest Speed 300 | 80 80 300 Overloaded Moves . | . . . Propulsion Burnouts . | . . . Robots Hopped . | . . . Potential Cave-ins . | . . . Cave-ins Triggered . | . . . Exploration Rate (%) 18 | 5 28 23 Regions Visited 2 Branch Regions . Pre-discovered Areas . | . . . Known Exits Taken . | . . . Unknown Exits Taken 2 | 1 1 . Scrap Searched . | . . . Spaces Dug 1 | . . 1 Terrain Destroyed 1 | . . 1 Melee 1 | . . 1 Projectile . | . . . AOE . | . . . Terrain Rammed . | . . . Walls Destroyed . | . . . Machines Disabled . | . . . Actions | -11 -10 -9 --------- Run | Yrd Mat Mat Total 435 | 109 140 186 Wait 43 | 4 1 38 Move 314 | 76 119 119 Hop . | . . . Pick Up 12 | 8 2 2 Fast Attach 13 | 7 . 6 Attach 4 | . . 4 Detach 1 | . 1 . Swap 2 | . 2 . Drop 6 | . 3 3 Fire 32 | 14 12 6 Melee 8 | . . 8 Ram . | . . . Kick . | . . . Crush . | . . . Escape Stasis . | . . . Rewire . | . . . Trap . | . . . Miscellaneous . | . . . Route ------- -11/Scrapyard -10/Materials -9/Materials History --------- Turn | Location | Event 20 | -11/Scrapyard | Discovered new exit (range 15) 123 | -11/Scrapyard | Entered Materials 165 | -10/Materials | Discovered new exit (range 9) 241 | -10/Materials | Discovered new exit (range 3) 272 | -10/Materials | Entered another Materials area 272 | -9/Materials | Evolved 2 slots: Utility x1, Weapon x1 417 | -9/Materials | Lost 7 parts (1p3n1u2w) 518 | -9/Materials | Core integrity fell below 50% 537 | -9/Materials | Core integrity fell below 20% 540 | -9/Materials | Destroyed by Lesser Abomination with Etherial Claws Last Messages --------------- Leg. 00514_ Lesser Abomination feeds off Hungry Anomaly, taking Corrupted Aluminum Leg. 00514_ Lesser Abomination sheds Hungry Anomaly. 00514_ Hungry Anomaly eats Lgt. Treads. 00515_ Hungry Anomaly eats Prototype Flight Unit. 00516_ Hungry Anomaly eats Aluminum Leg. 00516_ Hungry Anomaly eats Lgt. Treads. 00517_ Hungry Anomaly eats Aluminum Leg. 00518_ System corrupted: Component data lost. 00518_ Lesser Abomination spits out Lgt. Treads. 00518_ Lesser Abomination feeds off Hungry Anomaly, taking Lgt. Treads. 00518_ Hungry Anomaly eats Lgt. Treads. 00522_ Hungry Anomaly eats Wheel. 00529_ Frozen by Ice Anomaly. 00533_ System corrupted: Maul rejected. 00533_ Lgt. Ion Engine destroyed. 00536_ Critical hit (Intensify). Map ----- +----------------------------------------------------+ | ?????????????????????????????????????????????????? | | ?????????????????????????????????????????????????? | | ?????????????????????????????????????????????????? | | ?????????????????????????????????????????????????? | | ?????????????????????????????????????????????????? | | ?????????????????????????????????????????????????? | | ???????????????????????????????????????????????? | | !???????????????????????????????????????????????? | | ?????????? ????????????????????????????????? | | ???????????# +???????????????????????????????? | | ???????????? ????????????????????????????????? | | ???????????? ????????????????????????????????? | | ########????# #????????????????????????????????? | | ?????# #????????????????????????????????? | | "" """ ?????# #????????????????????????????????? | | ?" """??????# #????????????????????????????????? | | ?" """??????# #????????????????????????????????? | | ?? ???????# #????????????????????????????????? | | ?? ??????##%= ##?????###################???????? | | ###+########% ####### ???????? | | % % = ???????? | | % %% % ???????????? | | %% % %#####???????????????? | | ## ####### ####### #???????????????????? | | # #?????#######???#####A#####?????????????????? | | # #???????????????# @ #?????????????????? | | # #???????????????# #?????????????????? | | # % #???????????????# #?????????????????? | | # #???????????????# #?????????????????? | | # #?????????????? + [ #?????????????????? | | + % #?????????????### #?????????????????? | | # #???????????????# #?????????????????? | | # #???????????????# #?????????????????? | | ## %######??????????###### ####?????????????????? | | % ??????????##????????????????????? | | ^ ????????????????????????????????? | | ????????????????????????????????? | | ###+##### ##????????????????????????????????? | | ??? ???? #?????????????????????????????????? | | ??? ???! !#?????????????????????????????????? | | ??? """ #???! !#?????????????????????????????????? | | ??? """ #????##??????????????????????????????????? | | ??? """ #????????????????????????????????????????? | | ??? ???#????????????????????????????????????????? | | ??? ????????????????????????????????????????????? | | ????"????????????????????????????????????????????? | | ????#????????????????????????????????????????????? | | ?????????????????????????????????????????????????? | | ?????????????????????????????????????????????????? | | ?????????????????????????????????????????????????? | +----------------------------------------------------+ Best States ------------- Heat Dissipation 28 Energy Generation 10 Energy Capacity 125 Matter Stores 288 Matter Capacity 300 Sight Range 18 Terrain Scan Density 10 Evasion (%) 44 Targeting Accuracy 6 Item Schematics ----------------- None Robot Schematics ------------------ None Fabricated ------------ Nothing Repaired ---------- Nothing Alien Tech Used ----------------- None Achievements -------------- None Challenges ------------ None Game ------ Seed TimingHackingAirjet Manual? 0 Play Time 00:09:13 Cumulative 763.5 hours Start 2025.08.07 @ 23:30:03 End 2025.08.07 @ 23:37:45 Sessions 1 Manual Loads 0 Difficulty Rogue Special Mode Halloween2019/Abominations Game No. 298 Rogue 294 Adventurer 4 Explorer 0 Win Type - Total 13 Types 7/1/1/1/0/1/0/1/0/1 Lore% 94 Gallery% 89 Achievement% 87 Wizard Run 0 Options --------- Layout 2 ASCII 0 Keyboard 0 Movement Numpad Keybinds 0 Fullscreen 2 Font 24/Smallcaps Map View 50x44 Zoom Use 0% Tactical HUD 1 Map Filters SHIFT_HUE(80) Filters SHIFT_HUE(280) Steam X RUN: a0bf0355-e7ac-4813-a616-66e936c9fc27